[Event "Cellavision Cup 2018"]
[Site "Lund"]
[Date "2018.08.03"]
[Round "3"]
[White "Sivuk, Vitaly"]
[Black "Dragicevic, Drazen"]
[Result "1-0"]
[ECO "A05"]
[WhiteElo "2535"]
[BlackElo "2339"]
[Annotator "ChessBase"]
[PlyCount "83"]
[EventDate "2018.08.03"]
[EventType "swiss"]
[EventCountry "SWE"]
[SourceTitle "playchess.com"]
[Source "ChessBase"]
[SourceQuality "1"]
[TimeControl "900+5"]

1. Nf3 {[%emt 0:00:00]} Nf6 {[%emt 0:00:00]} 2. g3 {[%emt 0:00:02]} g6 {[%emt 0:00:04]} 3. b3 {[%emt 0:00:05]} Bg7 {[%emt 0:00:13]} 4. Bb2 {[%emt 0:00:02]} O-O {[%emt 0:00:12]} 5. Bg2 {[%emt 0:00:03]} c5 {[%emt 0:00:15]} 6. c4 {[%emt 0:00:03]} Nc6 {[%emt 0:01:21]} 7. O-O {[%emt 0:00:05]} b6 {[%emt 0:01:49]} 8. d4 {[%emt 0:00:11]} cxd4 {[%emt 0:00:02]} 9. Nxd4 {[%emt 0:00:02]} Bb7 {[%emt 0:00:07]} 10. Nc3 {[%emt 0:00:05]} Rc8 {[%emt 0:00:44]} 11. Rc1 {[%emt 0:00:08]} Qc7 {[%emt 0:00:25]} 12. Nd5 {[%emt 0:00:25]} Qd8 {[%emt 0:03:00]} 13. Nb5 {[%emt 0:05:09]} Ne8 {[%emt 0:02:07]} 14. Qd2 {[%emt 0:00:42]} a6 {[%emt 0:00:13]} 15. Bxg7 {[%emt 0:00:07]} Kxg7 {[%emt 0:00:02]} 16. Nbc3 {[%emt 0:00:52]} Ba8 {[%emt 0:01:11]} 17. Rfd1 {[%emt 0:01:17]} d6 {[%emt 0:00:28]} 18. Na4 {[%emt 0:00:18]} Rb8 {[%emt 0:00:18]} 19. Qe3 {[%emt 0:00:11]} b5 {[%emt 0:00:37]} 20. Nab6 {[%emt 0:00:20]} e6 {[%emt 0:01:29]} 21. Nxa8 {[%emt 0:00:12]} exd5 {[%emt 0:00:32]} 22. cxb5 {[%emt 0:00:09]} Ne7 {[%emt 0:00:35]} 23. Nc7 {[%emt 0:00:39]} Nxc7 {[%emt 0:00:12]} 24. Qc3+ {[%emt 0:00:01]} Kg8 {[%emt 0:00:16]} 25. Qxc7 {[%emt 0:00:02]} axb5 {[%emt 0:00:01]} 26. Qxd8 {[%emt 0:00:08]} Rfxd8 {[%emt 0:00:03]} 27. Bxd5 {[%emt 0:00:07]} Nxd5 {[%emt 0:00:29]} 28. Rxd5 {[%emt 0:00:02]} Rb6 {[%emt 0:00:09]} 29. Rc2 {[%emt 0:00:26]} b4 {[%emt 0:00:03]} 30. Ra5 {[%emt 0:00:39]} Rbb8 {[%emt 0:00:16]} 31. Ra4 {[%emt 0:00:15]} Rd7 {[%emt 0:00:04]} 32. Rc4 {[%emt 0:00:05]} Rdb7 {[%emt 0:00:02]} 33. Rd4 {[%emt 0:00:04]} Rc8 {[%emt 0:00:13]} 34. Rdxb4 {[%emt 0:00:19]} Rxb4 {[%emt 0:00:10]} 35. Rxb4 {[%emt 0:00:01]} Rc2 {[%emt 0:00:01]} 36. a4 {[%emt 0:00:04]} Rxe2 {[%emt 0:00:02]} 37. a5 {[%emt 0:00:05]} Re7 {[%emt 0:00:11]} 38. Ra4 {[%emt 0:00:03]} d5 {[%emt 0:00:04]} 39. a6 {[%emt 0:00:04]} Ra7 {[%emt 0:00:02]} 40. b4 {[%emt 0:00:01]} d4 {[%emt 0:00:01]} 41. b5 {[%emt 0:00:01]} d3 {[%emt 0:00:02]} 42. Rd4 {[%emt 0:00:03]} 1-0

[Event "Cellavision Cup 2018"]
[Site "Lund"]
[Date "2018.08.03"]
[Round "3"]
[White "Cramling, Pia"]
[Black "Schwarz, Dusan"]
[Result "1-0"]
[ECO "D44"]
[WhiteElo "2453"]
[BlackElo "2274"]
[Annotator "ChessBase"]
[PlyCount "51"]
[EventDate "2018.08.03"]
[EventType "swiss"]
[EventCountry "SWE"]
[SourceTitle "playchess.com"]
[Source "ChessBase"]
[SourceQuality "1"]
[TimeControl "900+5"]

1. Nf3 {[%emt 0:00:00]} d5 {[%emt 0:00:00]} 2. d4 {[%emt 0:00:00]} Nf6 {[%emt 0:00:00]} 3. c4 {[%emt 0:00:01]} c6 {[%emt 0:00:02]} 4. Nc3 {[%emt 0:00:22]} e6 {[%emt 0:00:04]} 5. Bg5 {[%emt 0:00:15]} dxc4 {[%emt 0:00:08]} 6. a4 {[%emt 0:00:14]} b5 {[%emt 0:00:55]} 7. axb5 {[%emt 0:00:17]} cxb5 {[%emt 0:00:02]} 8. Nxb5 {[%emt 0:00:07]} Qb6 {[%emt 0:00:21]} 9. Na3 {[%emt 0:04:22]} Qxb2 {[%emt 0:00:50]} 10. Nxc4 {[%emt 0:00:39]} Bb4+ {[%emt 0:00:38]} 11. Bd2 {[%emt 0:01:05]} Bxd2+ {[%emt 0:00:29]} 12. Nfxd2 {[%emt 0:00:57]} Qxd4 {[%emt 0:00:34]} 13. e3 {[%emt 0:00:23]} Qc5 {[%emt 0:00:40]} 14. Ra5 {[%emt 0:00:11]} Qc7 {[%emt 0:00:16]} 15. Qa4+ {[%emt 0:00:07]} Bd7 {[%emt 0:00:36]} 16. Qa3 {[%emt 0:00:04]} Bc6 {[%emt 0:02:35]} 17. Nd6+ {[%emt 0:00:45]} Kd8 {[%emt 0:01:19]} 18. Be2 {[%emt 0:00:14]} Ne8 {[%emt 0:01:08]} 19. N2c4 {[%emt 0:00:25]} Nxd6 {[%emt 0:00:09]} 20. Nxd6 {[%emt 0:00:06]} Kd7 {[%emt 0:02:10]} 21. Nxf7 {[%emt 0:00:16]} Bxg2 {[%emt 0:00:35]} 22. Rg1 {[%emt 0:00:39]} Nc6 {[%emt 0:00:08]} 23. Bb5 {[%emt 0:00:23]} Rhf8 {[%emt 0:02:34]} 24. Ne5+ {[%emt 0:00:52]} Kc8 {[%emt 0:00:21]} 25. Ba6+ {[%emt 0:00:35]} Kd8 {[%emt 0:00:06]} 26. Qxf8# 1-0

[Event "Cellavision Cup 2018"]
[Site "Lund"]
[Date "2018.08.03"]
[Round "3"]
[White "Lindberg, Bengt"]
[Black "Torngren, Gustav"]
[Result "1-0"]
[ECO "B27"]
[WhiteElo "2416"]
[BlackElo "2030"]
[Annotator "NA"]
[PlyCount "89"]
[EventDate "2018.08.03"]
[EventType "swiss"]
[EventCountry "SWE"]
[SourceTitle "playchess.com"]
[Source "ChessBase"]
[SourceQuality "1"]
[TimeControl "900+5"]

1. e4 {[%emt 0:00:00]} c5 {[%emt 0:00:00]} 2. Nf3 {[%emt 0:00:00]} g6 {[%emt 0:00:00]} 3. d4 {[%emt 0:00:02]} cxd4 {[%emt 0:00:00]} 4. Nxd4 {[%emt 0:00:02]} Bg7 {[%emt 0:00:00]} 5. c4 {[%emt 0:00:02]} Nf6 {[%emt 0:00:00]} 6. Nc3 {[%emt 0:00:03]} Nc6 {[%emt 0:00:01]} 7. Nc2 {[%emt 0:00:02]} O-O {[%emt 0:00:02]} 8. Be2 {[%emt 0:00:20]} d6 {[%emt 0:00:02]} 9. O-O {[%emt 0:00:04]} a5 {[%emt 0:00:04]} 10. Na3 {[%emt 0:00:20]} Nd7 {[%emt 0:00:12]} 11. Bd2 {[%emt 0:00:04]} Nc5 {[%emt 0:00:03]} 12. Nab5 {[%emt 0:00:17]} f5 {[%emt 0:00:17]} 13. exf5 {[%emt 0:00:25]} Bxf5 {[%emt 0:00:01]} 14. Be3 {[%emt 0:00:12]} Nb4 {[%emt 0:01:36]} 15. Nd4 {[%emt 0:00:44]} Bd7 {[%emt 0:00:24]} 16. Qd2 {[%emt 0:01:36]} Rc8 {[%emt 0:00:28]} 17. Rad1 {[%emt 0:00:17]} Rf7 {[%emt 0:00:33]} 18. a3 {[%emt 0:01:03]} Bxd4 {[%emt 0:00:28]} 19. Bxd4 {[%emt 0:01:00]} Nb3 {[%emt 0:00:04]} 20. Qg5 {[%emt 0:00:31]} Nxd4 {[%emt 0:00:18]} 21. Rxd4 {[%emt 0:00:03]} Nc6 {[%emt 0:00:07]} 22. Rd2 {[%emt 0:00:22]} Ne5 {[%emt 0:00:29]} 23. b3 {[%emt 0:00:18]} Rf5 {[%emt 0:00:15]} 24. Qe3 {[%emt 0:00:09]} Qf8 {[%emt 0:00:27]} 25. f4 {[%emt 0:00:11]} Nf7 {[%emt 0:01:26]} 26. Nd5 {[%emt 0:00:35]} Re8 {[%emt 0:01:07]} 27. g4 {[%emt 0:00:09]} Rxd5 {[%emt 0:00:50]} 28. cxd5 {[%emt 0:00:09]} e5 {[%emt 0:00:27]} 29. dxe6 {[%emt 0:00:28]} Bxe6 {[%emt 0:00:05]} 30. Qg3 {[%emt 0:00:06]} Qg7 {[%emt 0:01:33]} 31. f5 {[%emt 0:00:18]} gxf5 {[%emt 0:00:07]} 32. gxf5 {[%emt 0:00:02]} Qxg3+ {[%emt 0:00:14]} 33. hxg3 {[%emt 0:00:03]} Bxb3 {[%emt 0:00:01]} 34. Bh5 {[%emt 0:00:36]} d5 {[%emt 0:01:11]} 35. Re2 {[%emt 0:02:31]} Rd8 {[%emt 0:00:57]} 36. Re7 {[%emt 0:00:03]} d4 {[%emt 0:00:56]} 37. Rxb7 {[%emt 0:01:16]} Bd5 {[%emt 0:00:02]} 38. Re7 {[%emt 0:00:19]} Nd6 {[%emt 0:00:25]} 39. f6 {[%emt 0:00:23]} d3 {[%emt 0:00:46]} 40. Rf4 {[%emt 0:01:35]} Bf7 {[%emt 0:00:30]} 41. Bd1 {[%emt 0:00:25]} Rc8 {[%emt 0:00:44]} 42. Rd4 {[%emt 0:00:23]} Nf5 {[%emt 0:00:03]} 43. Rxd3 {[%emt 0:00:24]} Nxe7 {[%emt 0:00:10]} 44. fxe7 {[%emt 0:00:01]} Bg6 {[%emt 0:00:06]} 45. Rd8+ {[%emt 0:00:14]} 1-0

[Event "Cellavision Cup 2018"]
[Site "Lund"]
[Date "2018.08.03"]
[Round "3"]
[White "Malmstig, Erik"]
[Black "Sumets, Andrey"]
[Result "0-1"]
[ECO "A45"]
[WhiteElo "2308"]
[BlackElo "2575"]
[Annotator "ChessBase"]
[PlyCount "94"]
[EventDate "2018.08.03"]
[EventType "swiss"]
[EventCountry "SWE"]
[SourceTitle "playchess.com"]
[Source "ChessBase"]
[SourceQuality "1"]
[TimeControl "900+5"]

1. d4 {[%emt 0:00:00]} Nf6 {[%emt 0:00:00]} 2. Bg5 {[%emt 0:00:00]} d5 {[%emt 0:00:15]} 3. Bxf6 {[%emt 0:00:01]} gxf6 {[%emt 0:00:02]} 4. e3 {[%emt 0:00:14]} c5 {[%emt 0:00:06]} 5. Nd2 {[%emt 0:00:12]} e5 {[%emt 0:00:32]} 6. dxe5 {[%emt 0:00:15]} fxe5 {[%emt 0:00:07]} 7. e4 {[%emt 0:00:01]} Bg7 {[%emt 0:01:50]} 8. Qh5 {[%emt 0:00:44]} d4 {[%emt 0:00:26]} 9. Ngf3 {[%emt 0:00:16]} Nc6 {[%emt 0:00:26]} 10. Bc4 {[%emt 0:00:16]} Qe7 {[%emt 0:00:18]} 11. Ng5 {[%emt 0:00:48]} Nd8 {[%emt 0:00:03]} 12. Bb5+ {[%emt 0:00:16]} Kf8 {[%emt 0:00:36]} 13. O-O {[%emt 0:01:49]} h6 {[%emt 0:00:04]} 14. Nh3 {[%emt 0:00:18]} Qe6 {[%emt 0:01:59]} 15. Be2 {[%emt 0:00:36]} Qg6 {[%emt 0:00:12]} 16. Qxg6 {[%emt 0:00:40]} fxg6 {[%emt 0:00:02]} 17. f4 {[%emt 0:00:01]} Bxh3 {[%emt 0:00:27]} 18. gxh3 {[%emt 0:00:07]} Ke7 {[%emt 0:00:38]} 19. fxe5 {[%emt 0:00:27]} Bxe5 {[%emt 0:00:44]} 20. Nf3 {[%emt 0:00:35]} Bf4 {[%emt 0:02:44]} 21. Bc4 {[%emt 0:00:12]} Nc6 {[%emt 0:00:51]} 22. Bd5 {[%emt 0:00:27]} g5 {[%emt 0:00:24]} 23. Rad1 {[%emt 0:00:19]} Rhf8 {[%emt 0:00:13]} 24. Kg2 {[%emt 0:00:09]} Nb4 {[%emt 0:00:07]} 25. Bb3 {[%emt 0:00:26]} Rad8 {[%emt 0:00:14]} 26. c3 {[%emt 0:00:55]} dxc3 {[%emt 0:00:59]} 27. bxc3 {[%emt 0:00:02]} Rxd1 {[%emt 0:00:24]} 28. Rxd1 Nc6 29. Bd5 {[%emt 0:00:13]} Rf6 {[%emt 0:00:25]} 30. Rb1 {[%emt 0:01:31]} b6 {[%emt 0:00:04]} 31. Re1 {[%emt 0:00:05]} Ne5 {[%emt 0:00:06]} 32. Nxe5 {[%emt 0:00:11]} Bxe5 {[%emt 0:00:01]} 33. c4 {[%emt 0:00:05]} Kd6 {[%emt 0:00:07]} 34. Re2 {[%emt 0:00:16]} Bf4 {[%emt 0:00:05]} 35. a4 {[%emt 0:00:15]} Ke5 {[%emt 0:00:01]} 36. Rf2 {[%emt 0:00:29]} Kd4 {[%emt 0:00:05]} 37. h4 {[%emt 0:00:23]} g4 {[%emt 0:00:24]} 38. e5 {[%emt 0:00:40]} Bxe5 {[%emt 0:00:20]} 39. Rxf6 {[%emt 0:00:18]} Bxf6 {[%emt 0:00:01]} 40. Kg3 {[%emt 0:00:01]} Kc3 {[%emt 0:00:06]} 41. Kxg4 {[%emt 0:00:15]} Kb4 {[%emt 0:00:15]} 42. Kh5 {[%emt 0:00:12]} Kxa4 {[%emt 0:00:03]} 43. Kxh6 {[%emt 0:00:01]} Bxh4 {[%emt 0:00:04]} 44. Kh5 {[%emt 0:00:20]} Be1 {[%emt 0:00:25]} 45. Kg4 {[%emt 0:00:39]} Kb3 {[%emt 0:00:01]} 46. Kf3 {[%emt 0:01:10]} a5 {[%emt 0:00:02]} 47. Ke2 {[%emt 0:00:02]} a4 {[%emt 0:00:23]} 0-1

[Event "Cellavision Cup 2018"]
[Site "Lund"]
[Date "2018.08.03"]
[Round "3"]
[White "Vernersson, Per"]
[Black "Urkedal, Frode Olav Olsen"]
[Result "0-1"]
[ECO "A40"]
[WhiteElo "2290"]
[BlackElo "2537"]
[Annotator "ChessBase"]
[PlyCount "120"]
[EventDate "2018.08.03"]
[EventType "swiss"]
[EventCountry "SWE"]
[SourceTitle "playchess.com"]
[Source "ChessBase"]
[SourceQuality "1"]
[TimeControl "900+5"]

1. d4 {[%emt 0:00:00]} Nf6 {[%emt 0:00:00]} 2. c4 {[%emt 0:00:00]} e6 {[%emt 0:00:00]} 3. g3 {[%emt 0:00:04]} c5 {[%emt 0:00:01]} 4. Nf3 {[%emt 0:00:09]} cxd4 {[%emt 0:00:03]} 5. Nxd4 {[%emt 0:00:02]} d5 {[%emt 0:00:14]} 6. Bg2 {[%emt 0:00:31]} e5 {[%emt 0:00:02]} 7. Nf3 {[%emt 0:00:10]} d4 {[%emt 0:00:01]} 8. O-O {[%emt 0:00:11]} Nc6 {[%emt 0:00:01]} 9. e3 {[%emt 0:00:21]} Be7 {[%emt 0:00:08]} 10. exd4 {[%emt 0:00:09]} exd4 {[%emt 0:00:02]} 11. Bg5 {[%emt 0:00:21]} O-O {[%emt 0:00:08]} 12. Nbd2 {[%emt 0:00:04]} h6 {[%emt 0:00:10]} 13. Bxf6 {[%emt 0:00:03]} Bxf6 {[%emt 0:00:01]} 14. Ne4 {[%emt 0:00:45]} Bf5 {[%emt 0:00:08]} 15. Re1 {[%emt 0:00:23]} Re8 {[%emt 0:00:19]} 16. Nxf6+ {[%emt 0:00:08]} Qxf6 {[%emt 0:00:02]} 17. Qd2 {[%emt 0:00:20]} Bg4 {[%emt 0:00:53]} 18. Qd3 {[%emt 0:00:19]} Bf5 {[%emt 0:00:37]} 19. Qd2 {[%emt 0:00:50]} d3 {[%emt 0:00:05]} 20. Nh4 {[%emt 0:00:53]} Bh7 {[%emt 0:00:12]} 21. Rxe8+ {[%emt 0:00:44]} Rxe8 {[%emt 0:00:06]} 22. Re1 {[%emt 0:00:01]} Rxe1+ {[%emt 0:00:17]} 23. Qxe1 {[%emt 0:00:02]} Qe5 {[%emt 0:01:25]} 24. Kf1 {[%emt 0:01:35]} Qb8 {[%emt 0:01:30]} 25. Bd5 {[%emt 0:00:49]} Qd8 {[%emt 0:00:38]} 26. Nf3 {[%emt 0:00:40]} Bf5 {[%emt 0:00:13]} 27. Nd2 {[%emt 0:00:17]} Qd7 {[%emt 0:02:34]} 28. Qe3 {[%emt 0:00:10]} Nb4 {[%emt 0:00:12]} 29. Bf3 {[%emt 0:00:48]} Nc2 {[%emt 0:00:17]} 30. Qe5 {[%emt 0:00:50]} b6 {[%emt 0:01:56]} 31. a3 {[%emt 0:01:09]} Bh3+ {[%emt 0:00:26]} 32. Bg2 {[%emt 0:00:15]} g6 {[%emt 0:00:25]} 33. Ne4 {[%emt 0:00:50]} Bxg2+ {[%emt 0:00:03]} 34. Kxg2 {[%emt 0:00:03]} Qd4 {[%emt 0:00:38]} 35. Qxd4 {[%emt 0:00:42]} Nxd4 {[%emt 0:00:02]} 36. f4 {[%emt 0:00:06]} f5 {[%emt 0:00:34]} 37. Nf2 {[%emt 0:00:18]} d2 {[%emt 0:00:07]} 38. Nd1 {[%emt 0:00:02]} g5 {[%emt 0:00:07]} 39. Kf2 {[%emt 0:00:05]} g4 {[%emt 0:00:27]} 40. Ke3 {[%emt 0:00:27]} Nf3 {[%emt 0:00:02]} 41. h3 {[%emt 0:00:22]} Kf7 {[%emt 0:00:09]} 42. hxg4 {[%emt 0:00:06]} fxg4 {[%emt 0:00:02]} 43. Ke4 Ke6 {[%emt 0:01:04]} 44. b4 {[%emt 0:00:06]} h5 {[%emt 0:00:02]} 45. c5 {[%emt 0:00:08]} bxc5 {[%emt 0:00:01]} 46. bxc5 {[%emt 0:00:01]} h4 {[%emt 0:00:02]} 47. gxh4 {[%emt 0:00:06]} Nxh4 {[%emt 0:00:06]} 48. Ke3 {[%emt 0:00:24]} g3 {[%emt 0:00:13]} 49. Nc3 {[%emt 0:00:06]} g2 {[%emt 0:00:17]} 50. Kf2 {[%emt 0:00:04]} Nf5 {[%emt 0:00:34]} 51. Nd1 {[%emt 0:00:16]} Nh4 {[%emt 0:00:16]} 52. Nc3 {[%emt 0:00:00]} a6 {[%emt 0:00:13]} 53. c6 {[%emt 0:00:21]} Ke7 {[%emt 0:00:22]} 54. f5 {[%emt 0:00:05]} Nxf5 {[%emt 0:00:05]} 55. Kxg2 {[%emt 0:00:03]} Ne3+ {[%emt 0:00:01]} 56. Kf3 {[%emt 0:00:03]} d1=Q+ {[%emt 0:00:02]} 57. Nxd1 {[%emt 0:00:01]} Nxd1 {[%emt 0:00:02]} 58. Ke2 {[%emt 0:00:04]} Nc3+ {[%emt 0:00:01]} 59. Kd3 {[%emt 0:00:01]} Nb5 {[%emt 0:00:01]} 60. a4 {[%emt 0:00:09]} Nc7 {[%emt 0:00:03]} 0-1

[Event "Cellavision Cup 2018"]
[Site "Lund"]
[Date "2018.08.03"]
[Round "3"]
[White "Krantz, Christopher"]
[Black "Maiorov, Nikita"]
[Result "0-1"]
[ECO "A46"]
[WhiteElo "2240"]
[BlackElo "2504"]
[Annotator "ChessBase"]
[PlyCount "62"]
[EventDate "2018.08.03"]
[EventType "swiss"]
[EventCountry "SWE"]
[SourceTitle "playchess.com"]
[Source "ChessBase"]
[SourceQuality "1"]
[TimeControl "900+5"]

1. d4 {[%emt 0:00:00]} Nf6 {[%emt 0:00:00]} 2. Nf3 {[%emt 0:00:00]} e6 {[%emt 0:00:00]} 3. c3 {[%emt 0:00:04]} c5 {[%emt 0:00:10]} 4. Bg5 {[%emt 0:00:03]} h6 {[%emt 0:00:23]} 5. Bxf6 {[%emt 0:00:02]} Qxf6 {[%emt 0:00:02]} 6. e4 {[%emt 0:00:02]} cxd4 {[%emt 0:00:04]} 7. cxd4 {[%emt 0:00:03]} Qd8 {[%emt 0:00:08]} 8. Nc3 {[%emt 0:00:18]} Be7 {[%emt 0:00:01]} 9. Bd3 {[%emt 0:00:35]} d6 {[%emt 0:00:02]} 10. O-O {[%emt 0:00:06]} Nd7 {[%emt 0:00:02]} 11. Qe2 {[%emt 0:00:50]} a6 {[%emt 0:00:16]} 12. e5 {[%emt 0:01:13]} dxe5 {[%emt 0:01:01]} 13. dxe5 {[%emt 0:00:12]} Nc5 {[%emt 0:00:01]} 14. Bc2 {[%emt 0:00:42]} O-O {[%emt 0:00:10]} 15. b4 {[%emt 0:00:55]} Nd7 {[%emt 0:00:02]} 16. Rfd1 {[%emt 0:02:31]} Qb6 {[%emt 0:00:29]} 17. Rab1 {[%emt 0:00:34]} Rd8 {[%emt 0:00:03]} 18. Ne4 {[%emt 0:00:36]} Nf8 {[%emt 0:00:07]} 19. Rxd8 {[%emt 0:00:12]} Qxd8 {[%emt 0:00:01]} 20. a4 {[%emt 0:02:33]} Bd7 {[%emt 0:00:07]} 21. h3 {[%emt 0:00:41]} Bc6 {[%emt 0:00:18]} 22. b5 {[%emt 0:00:23]} axb5 {[%emt 0:00:01]} 23. axb5 {[%emt 0:00:02]} Bd5 {[%emt 0:00:01]} 24. Nc3 {[%emt 0:00:41]} Bxf3 {[%emt 0:00:10]} 25. Qxf3 {[%emt 0:00:11]} Ra3 {[%emt 0:00:05]} 26. Rb3 {[%emt 0:00:27]} Ra1+ {[%emt 0:02:14]} 27. Rb1 {[%emt 0:00:12]} Qa5 {[%emt 0:00:08]} 28. Rxa1 {[%emt 0:00:53]} Qxa1+ {[%emt 0:00:02]} 29. Nb1 {[%emt 0:01:05]} Qxe5 {[%emt 0:00:11]} 30. b6 {[%emt 0:00:26]} Qe1+ {[%emt 0:00:21]} 31. Kh2 {[%emt 0:00:02]} Bc5 {[%emt 0:00:01]} 0-1

[Event "Cellavision Cup 2018"]
[Site "Lund"]
[Date "2018.08.03"]
[Round "4"]
[White "Seo, Jung Min"]
[Black "Kiese, Matthias"]
[Result "1/2-1/2"]
[ECO "B52"]
[WhiteElo "2356"]
[BlackElo "2194"]
[Annotator "ChessBase"]
[PlyCount "132"]
[EventDate "2018.08.03"]
[EventType "swiss"]
[EventCountry "SWE"]
[SourceTitle "playchess.com"]
[Source "ChessBase"]
[SourceQuality "1"]
[TimeControl "900+5"]

1. e4 {[%emt 0:00:00]} c5 {[%emt 0:00:00]} 2. Nf3 {[%emt 0:00:00]} d6 {[%emt 0:00:00]} 3. Bb5+ {[%emt 0:00:04]} Bd7 {[%emt 0:00:02]} 4. Bxd7+ {[%emt 0:00:09]} Qxd7 {[%emt 0:00:02]} 5. O-O {[%emt 0:00:03]} Nf6 {[%emt 0:00:02]} 6. Re1 {[%emt 0:00:06]} Nc6 {[%emt 0:00:03]} 7. c4 {[%emt 0:00:17]} g6 {[%emt 0:00:29]} 8. d4 {[%emt 0:00:40]} cxd4 {[%emt 0:00:03]} 9. Nxd4 {[%emt 0:00:01]} Bg7 {[%emt 0:00:16]} 10. Nc3 {[%emt 0:00:25]} O-O {[%emt 0:00:17]} 11. f3 {[%emt 0:01:27]} Rfc8 {[%emt 0:02:03]} 12. Nde2 {[%emt 0:00:52]} a6 {[%emt 0:00:40]} 13. Be3 {[%emt 0:00:45]} Na5 {[%emt 0:02:26]} 14. b3 {[%emt 0:00:09]} b5 {[%emt 0:00:09]} 15. cxb5 {[%emt 0:00:21]} axb5 {[%emt 0:00:03]} 16. Qd3 {[%emt 0:00:51]} Rab8 {[%emt 0:00:47]} 17. Rac1 {[%emt 0:00:19]} Nc6 {[%emt 0:00:27]} 18. Nd4 {[%emt 0:00:44]} Nxd4 {[%emt 0:00:29]} 19. Bxd4 {[%emt 0:00:06]} Qb7 {[%emt 0:00:17]} 20. g3 {[%emt 0:00:42]} b4 {[%emt 0:00:24]} 21. Na4 {[%emt 0:00:33]} Nd7 {[%emt 0:00:49]} 22. Kg2 {[%emt 0:00:50]} Ne5 {[%emt 0:00:38]} 23. Bxe5 {[%emt 0:00:10]} Bxe5 {[%emt 0:00:06]} 24. Qd2 {[%emt 0:00:15]} Qb5 {[%emt 0:00:55]} 25. Rc2 {[%emt 0:00:43]} h5 {[%emt 0:00:55]} 26. Rec1 {[%emt 0:00:15]} Rxc2 {[%emt 0:00:06]} 27. Qxc2 {[%emt 0:00:06]} Bf6 {[%emt 0:01:29]} 28. Qc4 {[%emt 0:00:13]} Qg5 {[%emt 0:00:16]} 29. f4 {[%emt 0:00:54]} Qg4 {[%emt 0:00:07]} 30. h3 {[%emt 0:00:07]} Qd7 {[%emt 0:00:25]} 31. Qc6 {[%emt 0:00:37]} Qxc6 {[%emt 0:00:58]} 32. Rxc6 {[%emt 0:00:01]} Kf8 {[%emt 0:00:01]} 33. Kf3 {[%emt 0:00:15]} Ke8 {[%emt 0:00:01]} 34. Ke2 {[%emt 0:00:22]} Kd7 {[%emt 0:00:09]} 35. Rc4 {[%emt 0:00:47]} e6 {[%emt 0:00:06]} 36. Kd3 {[%emt 0:00:06]} d5 {[%emt 0:00:07]} 37. Rc2 {[%emt 0:00:08]} dxe4+ {[%emt 0:00:15]} 38. Kxe4 {[%emt 0:00:01]} Rb5 {[%emt 0:00:18]} 39. Rc5 {[%emt 0:00:26]} Rb8 {[%emt 0:00:19]} 40. Rc4 {[%emt 0:00:22]} Be7 {[%emt 0:00:21]} 41. Nc5+ {[%emt 0:00:42]} Bxc5 {[%emt 0:00:07]} 42. Rxc5 {[%emt 0:00:01]} Ra8 {[%emt 0:00:01]} 43. Rb5 {[%emt 0:00:42]} Rxa2 {[%emt 0:00:03]} 44. Rb7+ {[%emt 0:00:20]} Kd6 {[%emt 0:00:10]} 45. Rxb4 Re2+ {[%emt 0:00:05]} 46. Kf3 {[%emt 0:00:09]} Rb2 {[%emt 0:00:01]} 47. Rb7 {[%emt 0:00:22]} f5 {[%emt 0:00:05]} 48. h4 {[%emt 0:00:02]} Kc6 {[%emt 0:00:03]} 49. Rb8 {[%emt 0:00:39]} Kc5 {[%emt 0:00:10]} 50. Ke3 {[%emt 0:00:20]} Rb1 {[%emt 0:00:11]} 51. b4+ {[%emt 0:00:18]} Kd5 {[%emt 0:00:09]} 52. Rb5+ {[%emt 0:00:05]} Kd6 {[%emt 0:00:09]} 53. Rb8 {[%emt 0:00:06]} Kd5 {[%emt 0:00:04]} 54. Rd8+ {[%emt 0:00:03]} Kc6 {[%emt 0:00:04]} 55. Rg8 {[%emt 0:00:03]} Rxb4 {[%emt 0:00:11]} 56. Rxg6 {[%emt 0:00:01]} Rb3+ {[%emt 0:00:00]} 57. Kf2 {[%emt 0:00:02]} Kd5 {[%emt 0:00:02]} 58. Rh6 {[%emt 0:00:01]} Ra3 {[%emt 0:00:12]} 59. Kg2 {[%emt 0:00:03]} Ra2+ {[%emt 0:00:15]} 60. Kh3 {[%emt 0:00:03]} Ra1 {[%emt 0:00:15]} 61. Rxh5 {[%emt 0:00:04]} Ke4 {[%emt 0:00:01]} 62. Kg2 {[%emt 0:00:22]} Ra2+ {[%emt 0:00:01]} 63. Kh3 {[%emt 0:00:08]} Kf3 {[%emt 0:00:16]} 64. Rg5 {[%emt 0:00:03]} Ra1 {[%emt 0:00:06]} 65. Kh2 {[%emt 0:00:01]} Ra2+ {[%emt 0:00:07]} 66. Kh3 {[%emt 0:00:03]} Ra1 {[%emt 0:00:01]} 1/2-1/2